bitfinex/quotes_ETHUSD_20250328
["timestamp","ask_amount","ask_price","bid_price","bid_amount"]
[1743123026169,0.41924082,2009.0,2008.7,0.04977709]
[1743123026373,0.41924082,2009.0,2008.6,12.24938247]
[1743123026582,3.41924082,2009.0,2008.7,4.97831]
[1743123026786,5.78715,2008.9,2008.4,11.99747499]
[1743123026986,0.41863099,2008.8,2008.5,6.1785075]
[1743123027357,0.41863099,2008.8,2008.5,6.1783675]
[1743123027563,0.41863099,2008.8,2008.5,11.1570875]
[1743123027766,0.41863099,2008.8,2008.5,6.1783675]
[1743123028186,0.41863099,2008.8,2008.5,4.97862]
[1743123028493,0.41863099,2008.8,2008.7,4.97834]
[1743123028694,0.41863099,2008.8,2008.6,5.02814018]
[1743123029007,0.41863099,2008.8,2008.6,4.97836]
[1743123030702,0.41863099,2008.8,2008.5,4.9788]
[1743123031103,0.41863099,2008.8,2008.5,11.1769345]
[1743123031397,0.5495275,2008.8,2008.5,6.1981245]
[1743123031585,0.5495275,2008.8,2008.5,11.1768645]
[1743123031791,0.5495275,2008.8,2008.5,4.97871]
[1743123031992,0.5495275,2008.8,2008.5,9.95742]
[1743123032399,4.97872,2008.6,2008.2,5.77637]
[1743123032596,0.54805629,2008.5,2008.2,4.97947]
[1743123032797,4.9786,2008.6,2008.2,4.97947]
[1743123032999,0.54805629,2008.5,2008.2,19.47947]
[1743123033293,4.003476,2008.5,2008.2,14.5]
[1743123033498,0.8282,2008.4,2008.2,14.5]
[1743123033917,0.54784096,2008.3,2008.2,14.5]
[1743123034291,0.54784096,2008.3,2008.2,19.47958]
[1743123034495,0.54784096,2008.3,2008.2,4.97958]
[1743123034811,0.54730259,2008.3,2008.2,4.97958]
[1743123035016,0.7854,2008.6,2008.3,4.97924]
[1743123035214,4.97846,2008.7,2008.4,4.97884]
[1743123035215,0.54730259,2008.5,2008.4,4.97884]
[1743123035418,0.7607,2008.8,2008.6,4.9784]
[1743123035590,3.7607,2008.8,2008.6,4.9784]
[1743123035784,3.7607,2008.8,2008.7,14.5]
[1743123036111,3.7607,2008.8,2008.6,4.97855]
[1743123036323,7.21611971,2008.8,2008.4,4.97884]
[1743123036497,12.19432971,2008.8,2008.5,14.5]
[1743123036701,7.97835,2008.7,2008.5,14.5]
[1743123037019,3.0,2008.7,2008.5,14.5]
[1743123037631,3.0,2008.7,2008.4,4.97903]
[1743123037832,3.0,2008.7,2008.5,4.97864]
[1743123038019,3.0,2008.7,2008.5,24.45736]
[1743123038331,3.0,2008.7,2008.5,19.47864]
[1743123039029,3.0,2008.7,2008.5,4.97864]
[1743123039230,3.0,2008.7,2008.4,4.97907]
[1743123039430,3.0,2008.7,2008.5,4.97875]
[1743123040034,4.21611971,2008.8,2008.5,4.97875]
[1743123040238,3.0,2008.7,2008.6,4.97855]
[1743123041631,3.0,2008.7,2008.5,9.95748]
[1743123041834,3.0,2008.7,2008.6,4.97859]
[1743123042037,3.0,2008.9,2008.7,4.97823]
[1743123043441,3.0,2008.9,2008.7,9.95635]
[1743123043841,3.0,2008.9,2008.7,4.97812]
[1743123044435,3.0,2008.9,2008.8,4.97809]
[1743123045415,3.0,2008.9,2008.7,4.97812]
[1743123045615,3.0,2008.9,2008.7,10.7795568]
[1743123046044,3.0,2008.9,2008.7,5.8013368]
[1743123046547,1.31967685,2008.8,2008.5,12.403198]
[1743123046733,3.45541971,2008.6,2008.3,4.97919]
[1743123047044,0.54855869,2008.5,2008.4,4.97908]
[1743123047249,0.7718,2008.4,2008.2,5.975496]
[1743123047544,4.22721971,2008.4,2008.2,5.975496]
[1743123048044,0.54855869,2008.3,2008.2,5.975496]
[1743123049445,0.54855869,2008.3,2008.2,6.83188743]
[1743123049847,3.0,2008.7,2008.4,4.97896]
[1743123050044,6.45541971,2008.7,2008.4,4.97896]
[1743123051618,3.0,2008.7,2008.5,4.9786]
[1743123052044,3.0,2008.7,2008.5,9.95729]
[1743123052348,4.777,2008.8,2008.6,4.97859]
[1743123052760,4.777,2008.8,2008.6,4.9784]
[1743123054063,0.7649,2009.0,2008.7,4.97815]
[1743123054234,0.7649,2009.0,2008.8,4.97799]
[1743123054235,4.22031971,2009.0,2008.8,4.97799]
[1743123054928,3.45541971,2009.0,2008.8,4.97799]
[1743123055470,3.45541971,2009.0,2008.7,5.475965]
[1743123055788,3.45541971,2009.0,2008.7,10.454175]
[1743123056084,3.45541971,2009.0,2008.8,4.97807]
[1743123056730,3.45541971,2009.0,2008.7,5.475965]
[1743123057229,3.45541971,2009.0,2008.9,4.97784]
[1743123060585,3.45541971,2009.0,2008.8,5.6067265]
[1743123060778,3.45541971,2009.0,2008.8,10.5846365]
[1743123060961,3.45541971,2009.0,2008.8,0.6287465]
[1743123061153,3.45541971,2009.0,2008.6,5.78989]
[1743123061355,0.5471949,2008.9,2008.7,4.97819]
[1743123062481,3.45541971,2008.8,2008.6,4.97839]
[1743123062981,0.54302824,2008.7,2008.5,4.97882]
[1743123063187,0.54302824,2008.7,2008.4,4.97888]
[1743123063485,3.45541971,2008.8,2008.5,5.28035435]
[1743123063688,3.45541971,2008.8,2008.5,4.97874]
[1743123063859,1.30591539,2008.7,2008.4,24.45783]
[1743123064056,1.30591539,2008.7,2008.5,4.9788]
[1743123069889,1.30591539,2008.7,2008.6,4.97859]
[1743123072284,1.30591539,2008.7,2008.5,4.9788]
[1743123072694,1.30591539,2008.7,2008.6,4.97859]
[1743123073691,1.30591539,2008.7,2008.5,4.97876]
[1743123075190,1.30591539,2008.7,2008.5,9.95745]
[1743123075789,1.30591539,2008.7,2008.5,4.97869]
[1743123076318,1.30591539,2008.7,2008.4,14.5]
[1743123076486,3.45541971,2008.6,2008.4,14.5]
[1743123076693,3.45541971,2008.6,2008.4,24.45779]
[1743123076862,0.54223864,2008.5,2008.4,19.47889]
[1743123077062,0.54223864,2008.5,2008.4,4.97889]
[1743123077716,0.54223864,2008.5,2008.2,0.8227]
[1743123078005,3.45541971,2008.4,2008.2,9.95887]
[1743123078505,0.54223864,2008.3,2008.2,4.97943]
[1743123081404,0.54223864,2008.3,2008.1,4.97974]
[1743123081706,0.54223864,2008.3,2008.1,4.97966]
[1743123082085,0.54223864,2008.3,2008.1,9.95932]
[1743123082506,0.54223864,2008.3,2008.2,4.97958]
[1743123082906,5.52170864,2008.3,2007.9,4.98023]
[1743123083222,3.45541971,2008.2,2008.0,4.98007]
[1743123083625,0.54223864,2008.1,2007.9,24.46031]
[1743123083835,3.45541971,2008.2,2008.0,4.98007]
[1743123084029,3.45541971,2008.2,2008.1,4.97983]
[1743123084230,9.02391971,2008.4,2008.1,4.97983]
[1743123085832,0.8325,2008.4,2008.1,1.98441578]
[1743123086019,0.7746,2008.6,2008.3,4.97933]
[1743123086201,8.19041971,2008.7,2008.4,4.97898]
[1743123087300,8.43427971,2008.5,2008.1,6.91423077]
[1743123087542,3.45541971,2008.3,2008.0,10.47200853]
[1743123087755,3.45541971,2008.3,2008.0,10.42221975]
[1743123088137,4.23001971,2008.3,2008.0,4.97991]
[1743123088342,9.20938971,2008.3,2007.9,19.48032]
[1743123088541,9.20938971,2008.3,2007.9,27.587185]
[1743123088729,9.20938971,2008.3,2007.9,27.587045]
[1743123089127,9.20938971,2008.3,2007.9,22.606865]
[1743123089758,9.20938971,2008.3,2007.9,27.587025]
[1743123090057,4.23001971,2008.3,2008.0,4.98005]
[1743123090251,0.54008461,2008.2,2007.9,22.606865]
[1743123090441,5.51968461,2008.2,2007.9,3.126745]
[1743123090641,0.8242,2008.0,2007.7,4.98068]
[1743123090956,0.53918692,2007.9,2007.6,20.2456]
[1743123091158,0.53918692,2007.9,2007.7,4.98076]
[1743123092055,0.53918692,2007.9,2007.7,9.96152]
[1743123092253,0.53918692,2007.9,2007.7,4.98071]
[1743123092463,0.53918692,2007.9,2007.6,24.46199]
[1743123092754,0.53918692,2007.9,2007.6,19.48093]
[1743123092953,3.45541971,2007.7,2007.4,4.98139]
[1743123093153,3.45541971,2007.7,2007.4,9.96278]
[1743123093376,3.45541971,2007.7,2007.2,0.809]
[1743123093377,0.8135,2007.5,2007.3,4.98164]
[1743123093534,0.53915101,2007.6,2007.4,4.98139]
[1743123093733,3.45541971,2007.7,2007.5,4.98132]
[1743123094764,3.45541971,2007.7,2007.4,4.98139]
[1743123095467,3.45541971,2007.7,2007.5,4.98109]
[1743123095625,0.7792,2008.0,2007.9,4.98032]
[1743123095830,0.7792,2008.2,2007.9,4.98032]
[1743123096129,3.7792,2008.2,2008.0,14.5]
[1743123098157,0.7792,2008.2,2008.1,4.97983]
[1743123098457,8.99411971,2008.4,2008.1,4.97983]
[1743123099250,13.97322971,2008.4,2008.0,4.98004]
[1743123099573,3.45541971,2008.2,2007.9,19.48028]
[1743123099731,3.45541971,2008.2,2008.0,4.98007]
[1743123104065,3.45541971,2008.2,2007.9,4.98028]
[1743123104267,0.8228,2008.1,2007.8,4.98039]
[1743123104437,0.8228,2008.1,2007.8,9.96076]
[1743123105063,0.8228,2008.1,2007.9,4.98029]
[1743123106275,0.53552313,2008.0,2007.9,4.98029]
[1743123114582,3.45541971,2008.2,2008.0,4.98005]
[1743123117157,3.45541971,2008.2,2008.1,4.97983]
[1743123117967,5.5564,2008.3,2008.1,4.97983]
[1743123118189,5.5564,2008.3,2008.0,4.98005]
[1743123118494,3.45541971,2008.2,2008.0,4.98005]
[1743123119694,3.45541971,2008.2,2007.9,4.98028]
[1743123120300,3.45541971,2008.0,2007.7,4.98068]
[1743123120501,4.22121971,2007.8,2007.4,4.98136]
[1743123120689,4.22121971,2007.8,2007.2,5.78921]
[1743123120889,7.729,2007.9,2007.8,4.98057]
[1743123121090,8.26549322,2007.9,2007.8,4.98057]
[1743123121509,8.26549322,2007.9,2007.7,4.98082]
[1743123121677,0.53649322,2007.9,2007.8,6.60487333]
[1743123121996,3.0,2008.1,2008.0,4.98007]
[1743123122197,4.732,2008.2,2008.0,4.97989]
[1743123122404,0.53649322,2008.1,2008.0,4.97989]
[1743123122606,4.732,2008.2,2008.1,4.97983]
[1743123124406,7.732,2008.2,2008.1,4.97983]
[1743123130909,5.4897,2008.7,2008.5,4.97874]
[1743123131112,0.7707,2008.9,2008.8,4.97809]
[1743123131280,5.4977,2009.1,2008.8,4.97809]
[1743123131807,3.0,2009.0,2008.8,4.97809]
[1743123132181,5.4977,2009.1,2008.8,9.956]
[1743123132382,28.72,2009.3,2008.9,4.97762]
[1743123132590,28.72,2009.3,2009.0,4.97744]
[1743123132591,4.727,2009.2,2009.0,4.97744]
[1743123132810,4.727,2009.2,2009.0,9.95486]
[1743123133006,4.727,2009.2,2009.0,4.97742]
[1743123133193,4.727,2009.2,2009.0,9.95491]
[1743123133393,3.7979,2009.3,2009.0,4.97742]
[1743123133598,4.726,2009.4,2009.1,4.97722]
[1743123133794,3.0,2009.3,2009.1,4.97722]
[1743123134127,5.5414,2009.4,2009.1,4.97722]
[1743123134128,0.8154,2009.4,2009.1,4.97722]
[1743123134301,0.8154,2009.4,2009.1,9.95447]
[1743123134634,3.8154,2009.4,2009.1,4.97722]
[1743123134818,3.8154,2009.4,2009.1,9.95439]
[1743123135021,3.8154,2009.4,2009.1,4.97717]
[1743123135218,3.45541971,2009.3,2008.9,10.78033]
[1743123135421,3.45541971,2009.3,2008.9,9.95523]
[1743123135623,3.45541971,2009.1,2008.9,4.9776]
[1743123135823,4.22271971,2009.1,2008.7,5.73989]
[1743123136023,3.45541971,2008.9,2008.6,4.97854]
[1743123136411,0.8288,2008.7,2008.4,4.97891]
[1743123136614,4.28421971,2008.7,2008.3,4.97931]
[1743123136929,4.28421971,2008.7,2008.2,0.7705]
[1743123136930,3.45541971,2008.5,2008.2,9.95889]
[1743123137237,3.45541971,2008.5,2008.3,4.97931]
[1743123137639,0.53563094,2008.4,2008.3,4.97931]
[1743123139028,0.53563094,2008.4,2008.3,6.786185]
[1743123139232,12.23739971,2008.9,2008.5,4.9788]
[1743123140144,3.0,2008.6,2008.3,4.97931]
[1743123140508,3.0,2008.6,2008.4,4.97907]
[1743123142142,3.0,2008.6,2008.3,9.95853]
[1743123142433,3.8238,2008.6,2008.3,4.97922]
[1743123142634,8.8025,2008.6,2008.2,4.97954]
[1743123143008,3.45541971,2008.5,2008.2,4.97954]
[1743123143850,3.45541971,2008.5,2008.1,4.97958]
[1743123144034,8.43441971,2008.5,2008.1,4.97958]
[1743123144343,8.43441971,2008.5,2008.1,19.47958]
[1743123144709,13.41348971,2008.5,2008.0,4.98002]
[1743123144940,8.43441971,2008.5,2008.1,4.97973]
[1743123145446,8.5668,2008.6,2008.0,6.4838313]
[1743123145447,3.45541971,2008.3,2008.0,14.5]
[1743123145746,0.7838,2008.1,2007.8,5.79366333]
[1743123145908,0.7838,2008.1,2007.8,10.77412333]
[1743123146452,3.0,2008.2,2007.8,0.81330333]
[1743123146610,3.0,2008.3,2008.1,4.97983]
[1743123147828,6.7938,2008.6,2008.1,0.7779]
[1743123148147,10.50697,2008.8,2008.4,4.97895]
[1743123148349,10.50797,2008.8,2008.4,4.97895]
[1743123148544,3.0,2008.7,2008.4,4.97895]
[1743123149449,3.0,2008.7,2008.3,4.97933]
[1743123149637,3.0,2008.7,2008.3,4.97922]
[1743123149835,3.0,2008.8,2008.5,5.78361]
[1743123150038,7.744,2008.8,2008.5,5.78361]
[1743123150237,7.744,2008.8,2008.5,0.8049]
[1743123150443,7.744,2008.8,2008.6,4.97838]
[1743123151123,3.45541971,2008.9,2008.5,0.8049]
[1743123151124,3.0,2008.9,2008.5,5.78368]
[1743123151438,0.5413053,2008.8,2008.6,6.054834]
[1743123152139,0.5413053,2008.8,2008.7,4.97834]
[1743123152639,0.5413053,2008.8,2008.6,1.076254]
[1743123153023,0.5413053,2008.8,2008.5,4.97869]
[1743123153223,3.99672501,2008.8,2008.5,4.97869]
[1743123153928,3.99672501,2008.8,2008.5,9.95734]
[1743123154130,0.5413053,2008.8,2008.6,4.97858]
[1743123154364,0.5413053,2008.8,2008.6,4.97841]
[1743123154850,0.5413053,2008.8,2008.7,5.476181]
[1743123155229,3.7565,2009.2,2008.9,4.97784]
[1743123155454,0.54152072,2009.1,2009.0,4.9776]
[1743123155624,0.54152072,2009.1,2008.9,4.97762]
[1743123155960,0.54152072,2009.1,2008.9,9.9553]
[1743123156145,0.54152072,2009.1,2008.9,11.0006141]
[1743123156350,0.54152072,2009.1,2008.9,6.0229341]
[1743123158861,0.54152072,2009.1,2008.9,11.0006841]
[1743123159164,0.54152072,2009.1,2008.9,6.0229341]
[1743123159365,0.54152072,2009.1,2009.0,4.9776]
[1743123159667,0.54152072,2009.1,2008.9,6.0231041]
[1743123159873,0.54152072,2009.1,2008.9,11.8031641]
[1743123160173,0.54152072,2009.1,2009.0,4.9776]
[1743123160845,0.54152072,2009.1,2008.9,6.8253741]
[1743123161047,0.54152072,2009.1,2008.9,4.97766]
[1743123164674,0.54152072,2009.1,2009.0,4.9776]
[1743123165843,0.54152072,2009.1,2008.9,4.97766]
[1743123166372,0.54152072,2009.1,2008.9,4.97764]
[1743123166672,0.54152072,2009.1,2009.0,4.9776]
[1743123167591,0.54152072,2009.1,2009.0,11.68591472]
[1743123167740,3.0,2009.4,2009.3,4.97685]
[1743123167936,3.51276429,2009.4,2009.3,4.97685]
[1743123168338,3.51276429,2009.4,2009.1,4.97728]
[1743123168774,3.51276429,2009.4,2009.2,4.97702]
[1743123169089,3.51276429,2009.4,2009.1,4.97718]
[1743123169271,0.7802,2009.3,2008.9,4.97771]
[1743123169440,0.7802,2009.3,2009.0,4.97749]
[1743123169782,3.0,2009.4,2009.2,4.9771]
[1743123171063,3.0,2009.4,2009.1,4.97722]
[1743123173088,4.97722,2009.2,2008.8,5.72869]
[1743123173378,4.97722,2009.2,2008.7,9.95639]
[1743123173675,4.97722,2009.2,2008.7,11.031609]
[1743123174043,4.97722,2009.2,2008.8,4.97805]
[1743123174440,4.97722,2009.2,2008.8,9.95595]
[1743123174671,3.0,2009.2,2008.8,4.9779]
[1743123174949,3.771,2009.3,2009.0,4.97756]
[1743123175195,3.771,2009.3,2009.0,10.88284558]
[1743123175393,3.771,2009.3,2009.0,5.90528558]
[1743123175595,8.74788,2009.3,2008.9,9.95554]
[1743123175880,3.0,2009.3,2009.1,4.9773]
[1743123176257,3.0,2009.3,2009.1,9.95448]
[1743123176456,3.0,2009.3,2009.1,4.97718]
[1743123177077,3.0,2009.3,2009.0,5.78913]
[1743123177276,3.0,2009.3,2009.0,4.97753]
[1743123179185,3.0,2009.3,2009.0,4.97741]
[1743123179383,3.0,2009.3,2008.9,0.87717185]
[1743123179583,0.7591,2009.2,2008.9,4.97773]
[1743123180296,3.0,2009.3,2008.9,4.97765]
[1743123180463,3.0,2009.3,2009.1,4.97725]
[1743123181173,5.4901,2009.4,2009.1,4.97725]
[1743123181369,0.51326884,2009.3,2009.1,4.97725]
[1743123182285,0.51326884,2009.3,2009.0,10.77453]
[1743123182486,0.51326884,2009.3,2009.0,5.79704]
[1743123182780,0.51326884,2009.3,2009.0,8.324527]
[1743123183790,0.51326884,2009.3,2009.1,4.97732]
[1743123184179,0.51326884,2009.3,2009.2,4.9771]
[1743123184494,3.0,2009.4,2009.2,19.4771]
[1743123184653,0.51370134,2009.3,2009.2,19.4771]
[1743123184858,0.51370134,2009.3,2009.2,4.9771]
[1743123186479,0.51370134,2009.3,2009.1,24.45452]
[1743123186683,0.51370134,2009.3,2009.1,19.4772]
[1743123186891,0.51370134,2009.3,2009.1,22.35018097]
[1743123187059,0.51370134,2009.3,2009.2,4.9771]
[1743123187987,0.51370134,2009.3,2009.1,22.35018097]
[1743123188155,0.51370134,2009.3,2009.1,4.9772]
[1743123188893,0.51370134,2009.3,2009.2,4.9771]
[1743123190571,0.51370134,2009.3,2009.2,5.75269612]
[1743123191192,3.0,2009.5,2009.2,5.75269612]
[1743123191364,0.47153168,2009.3,2009.2,4.97695]
[1743123191563,3.0,2009.5,2009.3,4.97682]
[1743123191814,11.97463934,2009.8,2009.1,4.20581971]
[1743123191815,0.47153168,2009.4,2009.1,4.20581971]
[1743123191963,0.8331,2009.8,2009.5,4.97629]
[1743123192173,0.47153168,2009.7,2009.5,4.97629]
[1743123192861,3.47153168,2009.7,2009.5,4.97629]
[1743123193058,0.47153168,2009.7,2009.5,4.97629]
[1743123193460,0.47153168,2009.7,2009.4,14.5]
[1743123193665,8.44749168,2009.7,2009.4,14.5]
[1743123193894,3.47153168,2009.7,2009.4,19.47655]
[1743123194195,3.47153168,2009.7,2009.4,24.45298]
[1743123194398,3.47153168,2009.7,2009.4,14.5]
[1743123194796,8.44741168,2009.7,2009.4,14.5]
[1743123194976,3.47153168,2009.7,2009.4,19.47658]
[1743123195176,8.44740168,2009.7,2009.4,14.5]
[1743123195388,3.47153168,2009.7,2009.4,21.996781]
[1743123195581,3.47153168,2009.7,2009.5,4.9762]
[1743123196095,3.47153168,2009.7,2009.4,21.996781]
[1743123196303,8.44741168,2009.7,2009.4,2.520391]
[1743123196471,9.23311168,2009.7,2009.3,5.72718]
[1743123197497,4.97614,2009.6,2009.3,0.7504]
[1743123197701,4.97614,2009.6,2009.2,19.47694]
[1743123197868,0.47251023,2009.5,2009.3,4.97683]
[1743123198078,3.7857,2009.7,2009.4,4.97651]
[1743123199602,3.7857,2009.7,2009.3,9.95338]
[1743123199802,3.7857,2009.7,2009.3,12.82295997]
[1743123200002,8.76157,2009.7,2009.4,4.9766]
[1743123200784,3.7857,2009.7,2009.4,4.9766]
[1743123203481,8.76159,2009.7,2009.3,19.47665]
[1743123203681,4.97625,2009.6,2009.2,4.9771]
[1743123203983,0.8167,2009.4,2009.1,4.97734]
[1743123204383,0.8167,2009.4,2009.1,9.95452]
[1743123204778,0.8167,2009.4,2009.1,4.97718]
[1743123205331,0.8167,2009.4,2009.0,14.96265594]
[1743123205492,0.8167,2009.4,2009.0,0.46265594]
[1743123205493,4.97723,2009.2,2009.0,0.46265594]
[1743123205807,5.78165,2009.1,2009.0,0.46265594]
[1743123206010,5.78165,2009.1,2008.8,14.5]
[1743123206309,4.97795,2008.9,2008.5,5.76053]
[1743123206503,9.95599,2008.9,2008.5,4.97866]
[1743123206689,0.8043,2008.8,2008.5,4.97866]
[1743123206895,0.8043,2008.8,2008.5,20.5320052]
[1743123207616,5.78241,2008.8,2008.5,15.5533452]
[1743123207914,0.8043,2008.8,2008.5,20.5321652]
[1743123208116,5.78241,2008.8,2008.5,15.5533452]
[1743123208288,5.78241,2008.8,2008.5,14.5]
[1743123209115,0.8043,2008.8,2008.5,14.5]
[1743123209804,0.8043,2008.8,2008.5,19.47883]
[1743123211420,0.47138629,2008.7,2008.5,19.47883]
[1743123211586,0.47138629,2008.7,2008.5,19.47868]
[1743123211789,0.47138629,2008.7,2008.6,5.02837638]
[1743123212014,0.8043,2009.0,2008.8,4.97806]
[1743123212214,5.5235,2009.4,2009.1,4.9772]
[1743123212517,5.5235,2009.4,2009.2,4.97707]
[1743123212731,0.8105,2009.6,2009.3,4.97685]
[1743123216519,0.8105,2009.6,2009.4,4.9766]
[1743123216814,6.32232,2009.8,2009.4,4.9766]
[1743123217018,3.0,2009.7,2009.4,4.9766]
[1743123217223,4.97614,2009.6,2009.2,6.054167]
[1743123217391,4.97614,2009.6,2009.2,20.554167]
[1743123217585,4.97614,2009.6,2009.2,14.5]
[1743123217586,0.7967,2009.5,2009.2,14.5]
[1743123217790,0.7967,2009.5,2009.2,19.47707]
[1743123218303,0.7967,2009.5,2009.3,4.97684]
[1743123219416,3.7967,2009.7,2009.3,4.97669]
[1743123219808,3.7967,2009.7,2009.4,4.9766]
[1743123220124,3.55,2009.8,2009.5,4.97625]
[1743123220418,8.264,2009.8,2009.5,4.97625]
[1743123220999,8.264,2009.8,2009.4,6.7672055]
[1743123221630,8.264,2009.8,2009.4,11.7437055]
[1743123222005,16.69513971,2009.8,2009.3,4.97684]
[1743123222210,5.75761,2009.6,2009.2,4.97687]
[1743123222727,4.97665,2009.4,2009.0,5.75506]
[1743123222932,3.0,2009.4,2009.0,10.73247]
[1743123223139,3.0,2009.5,2009.1,4.97722]
[1743123223453,3.0,2009.5,2009.2,4.97708]
[1743123224236,7.97636,2009.5,2009.1,4.97722]
[1743123224536,7.97636,2009.5,2009.0,5.75524]
[1743123224698,7.97636,2009.5,2009.0,4.97754]
[1743123224699,4.97665,2009.4,2009.0,4.97754]
[1743123224903,7.97636,2009.5,2009.0,4.97754]
[1743123225142,12.95288,2009.5,2009.0,9.95495]
[1743123225443,12.95288,2009.5,2009.0,4.97741]
[1743123225734,4.9767,2009.4,2009.0,4.97741]
[1743123226446,0.43433146,2009.3,2009.0,4.97741]
[1743123226649,0.43433146,2009.3,2009.0,9.95491]
[1743123226854,0.43433146,2009.3,2009.0,4.97741]
[1743123227216,0.43433146,2009.3,2009.0,9.95491]
[1743123227411,0.43433146,2009.3,2009.0,4.97741]
[1743123227627,0.43433146,2009.3,2009.0,9.9549]
[1743123227823,0.43433146,2009.3,2009.0,4.97741]
[1743123228941,0.43433146,2009.3,2009.1,4.97733]
[1743123229130,0.43433146,2009.3,2009.0,4.97741]
[1743123229327,12.95289,2009.5,2009.1,4.97733]
[1743123229520,0.43433146,2009.2,2009.1,4.97733]
[1743123229724,12.95288,2009.5,2009.1,4.97733]
[1743123230042,4.97661,2009.4,2009.0,4.97753]
[1743123230246,5.41094146,2009.4,2009.0,4.97753]
[1743123231517,0.43433146,2009.4,2009.0,9.95496]
[1743123232228,0.43433146,2009.4,2009.1,4.97731]
[1743123232848,5.41097146,2009.4,2009.0,4.97743]
[1743123233453,5.41097146,2009.4,2009.0,9.95492]
[1743123233651,5.41097146,2009.4,2009.0,4.97743]
[1743123234256,5.78876,2009.3,2008.9,9.95568]
[1743123234460,0.8119,2009.3,2008.9,9.95568]
[1743123234755,0.43433146,2009.2,2008.9,4.97784]
[1743123235250,0.43433146,2009.2,2008.9,9.95547]
[1743123235552,5.41155146,2009.2,2008.7,4.97809]
[1743123235933,5.41155146,2009.2,2008.8,4.97806]
[1743123236845,0.43433146,2009.2,2008.9,4.97782]
[1743123239639,0.43433146,2009.2,2008.8,9.95603]
[1743123239839,4.97747,2009.1,2008.6,0.8236]
[1743123240042,1.25499178,2009.0,2008.7,4.97829]
[1743123240232,1.25499178,2009.0,2008.7,9.95653]
[1743123240428,1.25499178,2009.0,2008.7,4.97824]
[1743123240845,1.25499178,2009.0,2008.7,4.97823]
[1743123241664,4.25499178,2009.0,2008.6,4.97858]
[1743123241862,9.23272178,2009.0,2008.6,4.97858]
[1743123242958,4.25499178,2009.0,2008.6,4.97841]
[1743123243135,4.25499178,2009.0,2008.6,9.95689]
[1743123243337,9.23272178,2009.0,2008.6,9.95689]
[1743123243735,4.25499178,2009.0,2008.7,4.97833]
[1743123244072,4.25499178,2009.0,2008.6,4.97841]
[1743123244242,9.23262178,2009.0,2008.6,4.97841]
[1743123245252,4.97785,2008.9,2008.5,4.97865]
[1743123245454,0.43185349,2008.8,2008.6,4.97854]
[1743123245670,8.79992,2009.0,2008.6,4.97854]
[1743123245970,0.43185349,2008.9,2008.6,4.97854]
[1743123247369,5.78597,2008.8,2008.1,0.7743]
[1743123247668,5.78597,2008.8,2008.4,4.97905]
[1743123247845,0.43185349,2008.7,2008.4,4.97905]
[1743123248254,5.41021349,2008.7,2008.3,4.97929]
[1743123248456,5.41021349,2008.7,2008.2,4.97946]
[1743123248766,5.78668,2008.5,2008.1,9.95933]
[1743123248968,5.78668,2008.5,2008.1,4.97962]
[1743123249141,0.4294478,2008.4,2008.1,4.97962]
[1743123249841,0.4294478,2008.4,2008.0,4.98007]
[1743123250037,5.4086578,2008.4,2008.0,4.98007]
[1743123250267,5.4086578,2008.4,2008.0,9.95994]
[1743123250268,0.4294478,2008.4,2008.0,9.95994]
[1743123251869,5.7703,2008.2,2007.8,4.98037]
[1743123252075,0.42908321,2008.1,2007.8,4.98037]
[1743123252275,0.7907,2008.2,2007.9,4.98022]
[1743123252460,0.42839039,2008.1,2007.9,4.98022]
[1743123252656,0.7907,2008.2,2007.9,4.98022]
[1743123252856,0.42839039,2008.1,2007.9,4.98022]
[1743123253159,0.7907,2008.2,2007.9,4.98022]
[1743123253358,0.42839039,2008.0,2007.9,4.98022]
[1743123253586,0.7907,2008.2,2007.9,4.98022]
[1743123253789,0.42839039,2008.0,2007.9,4.98022]
[1743123253948,0.7907,2008.2,2007.9,4.98022]
[1743123254582,0.42839039,2008.1,2007.9,4.98022]
[1743123254951,0.7907,2008.2,2007.9,4.98022]
[1743123255154,0.42795275,2008.0,2007.9,4.98022]
[1743123255682,3.7907,2008.2,2007.9,4.98022]
[1743123255848,0.42795275,2008.1,2007.9,4.98022]
[1743123256044,3.7907,2008.2,2007.9,4.98022]
[1743123256244,0.42795275,2008.1,2007.9,4.98022]
[1743123256458,3.7907,2008.2,2007.9,4.98022]
[1743123256681,0.42795275,2008.1,2007.9,4.98022]
[1743123256978,3.7907,2008.2,2007.9,4.98022]
[1743123257179,0.42795275,2008.0,2007.9,4.98022]
[1743123257381,3.7907,2008.2,2007.9,4.98022]
[1743123257554,0.42795275,2008.0,2007.9,4.98022]
[1743123257755,3.7907,2008.2,2007.9,4.98022]
[1743123257967,0.42795275,2008.0,2007.9,4.98022]
[1743123258188,3.7907,2008.2,2007.9,4.98022]
[1743123258386,0.42795275,2008.0,2007.9,4.98022]
[1743123258586,3.7907,2008.2,2007.9,4.98022]
[1743123258787,0.42795275,2008.0,2007.9,4.98022]
[1743123259387,3.7907,2008.2,2007.9,4.98022]
[1743123259600,0.42795275,2008.0,2007.9,4.98022]
[1743123259790,3.7907,2008.2,2007.9,4.98022]
[1743123260286,0.426093,2008.1,2007.9,4.98022]
[1743123260457,3.7907,2008.2,2007.9,4.98022]
[1743123260654,0.426093,2008.1,2007.9,4.98022]
[1743123260892,3.7907,2008.2,2007.9,4.98022]
[1743123261067,0.426093,2008.1,2007.9,4.98022]
[1743123261269,3.7907,2008.2,2007.9,4.98022]
[1743123261469,0.426093,2008.1,2007.9,4.98022]
[1743123261669,3.7907,2008.2,2007.9,4.98022]
[1743123261865,0.426093,2008.1,2007.9,4.98022]
[1743123262081,3.7907,2008.2,2007.9,4.98022]
[1743123262397,0.426093,2008.1,2007.9,4.98022]
[1743123262696,3.7907,2008.2,2007.9,4.98022]